Cogmind - Beta 16 @@@ ROGUE MODE // 2026.01.05 @ 18:51:57 Player: Yellow Fin Result: Destroyed by T6-D24(R) with Subdweller Beam Cannon Performance ------------- Evolutions (0) 0 Regions Visited (2) 400 Robots Destroyed (43) 215 Value Destroyed (898) 898 Prototype IDs (12) 240 Alien Tech Used (0) 0 Bonus (0) 0 TOTAL SCORE: 1753 Bonus ------- None Cogmind --------- Core Integrity 0/250 Matter 200/300 Energy 250/250 System Corruption 0% Temperature Cool (9) Movement Rolling (107) Ox1 Location -10/Subcaves Parts ------- > --- POWER (1) -------- Ion Engine > --- PROPULSION (2) --- Wheel Subdweller Monowheel > --- UTILITY (2) ------ High-capacity Storage Unit Sensor Array > --- WEAPON (2) ------- Subdweller Laser Battle Cannon > --- INVENTORY (20) --- Ion Engine Wheel Wheel Wheel Wheel Wheel Wheel High-capacity Matter Pod (140) Signal Interpreter Gun Armor Particle Gun Beam Cannon Light Cannon Grenade Launcher Mining Laser Peak State ------------ > --- POWER ------------ Ion Engine > --- PROPULSION ------- Wheel Subdweller Monowheel > --- UTILITY ---------- High-capacity Storage Unit Light Armor Plating > --- WEAPON ----------- Subdweller Laser Battle Cannon > --- INVENTORY -------- Ion Engine Wheel Wheel Wheel Wheel Wheel Wheel High-capacity Matter Pod Sensor Array Signal Interpreter Gun Armor Particle Gun Beam Cannon Light Cannon Grenade Launcher Mining Laser [Rating: 12] Favorites ----------- Power Ion Engine Engine Ion Engine Propulsion Wheel Leg Aluminum Leg Wheel Wheel Utility High-capacity Storage Unit Device Sensor Array Storage High-capacity Storage Unit Hackware Hacking Suite Protection Light Armor Plating Weapon Beam Cannon Energy Gun Small Laser Energy Cannon Beam Cannon Ballistic Gun Light Assault Rifle Ballistic Cannon Light Cannon Special Weapon Mining Laser Build | -11 -10 -10 ------- Run | Yrd Mat Sub Slots Evolved . | . . . Power . | . . . Propulsion . | . . . Utility . | . . . Weapon . | . . . Parts Attached 42 | 9 23 10 Power 4 | . 4 . Engine 4 | . 4 . Core . | . . . Reactor . | . . . Propulsion 19 | 5 10 4 Treads . | . . . Leg 7 | 1 6 . Wheel 12 | 4 4 4 Hover . | . . . Flight . | . . . Utility 7 | 1 5 1 Device 1 | . . 1 Storage 4 | 1 3 . Processor . | . . . Hackware 1 | . 1 . Protection 1 | . 1 . Artifact . | . . . Weapon 12 | 3 4 5 Energy Gun 5 | 2 1 2 Energy Cannon 2 | . 1 1 Ballistic Gun 1 | 1 . . Ballistic Cannon 2 | . 1 1 Launcher . | . . . Special Weapon 2 | . 1 1 Impact Weapon . | . . . Slashing Weapon . | . . . Piercing Weapon . | . . . Special Melee Weapon . | . . . Unidentified Prototypes . | . . . Parts Lost 2 | . 1 1 Power . | . . . Propulsion 1 | . 1 . Utility 1 | . . 1 Weapon . | . . . Highest Loss Streak 1 | . 1 1 To Critical Strikes . | . . . Average Backups 10 | 4 9 12 Power 1 | 1 1 1 Propulsion 4 | 2 4 4 Utility 2 | . 1 3 Weapon 2 | . 1 3 Tool/Special . | . . . Unused Backups 17 | 3 7 7 Power 3 | . 2 1 Propulsion 10 | 3 4 3 Utility 3 | . 1 2 Weapon 1 | . . 1 Tool/Special . | . . . Average Slot Usage (%) 99 | . 99 99 Engine 14 | . 14 14 Leg 7 | . 12 . Wheel 20 | . 15 28 Storage 14 | . 14 14 Hackware 6 | . 10 . Protection 7 | . 3 13 Energy Gun 3 | . 4 2 Energy Cannon 9 | . 8 11 Ballistic Gun 6 | . 10 . Ballistic Cannon 7 | . 3 14 Peak Build Rating 12 | 5 10 12 Average Rating 8 | 4 9 8 On Entrance 4 | . 5 8 Avg Prop Armor Cover (%) 13 | 13 . . Naked Turns . | . . . Heaviest Build 59 | 7 54 59 Greatest Support 30 | 26 20 30 Greatest Overweight (x) 2 | . 2 2 Average Overweight (x) . | . . 1 Largest Inventory Capacity 20 | 8 20 20 Average Capacity 14 | 6 11 20 Most Carried 16 | 8 12 16 Average Carried 10 | 4 9 12 Final Capacity 20 | 8 20 20 Final Carried 15 | 8 11 15 Class Distribution -------------------- 53% | Mutant 46% | Scavenger-Mutant Dominant Class ---------------- Scavenger-Mutant | -10/Materials Mutant | -10/Subcaves Resources | -11 -10 -10 ----------- Run | Yrd Mat Sub Matter Collected 1030 | 297 531 202 Remotely . | . . . Salvage Created 1290 | 172 928 190 Parts 100 | 11 72 17 Haulers Intercepted 2 | . 2 . Recyclers Shooed 3 | . 3 . Parts Field Recycled . | . . . Retrieved Matter . | . . . Parts Self-Destructed 7 | . . 7 Prevented . | . . . Parts Restored . | . . . Kills | -11 -10 -10 ------- Run | Yrd Mat Sub Combat Hostiles Destroyed 25 | . 16 9 Guns 12 | . 11 1 Cannons 13 | . 5 8 Classes Destroyed 10 | 2 7 1 Worker 1 | . 1 . Builder 4 | . 4 . Tunneler 6 | 3 3 . Hauler 2 | . 2 . Recycler 2 | 1 1 . Operator 1 | . 1 . Watcher 2 | . 2 . Swarmer 7 | . 3 4 Grunt 13 | . 13 . Subdweller 5 | . . 5 Best Kill Streak 6 | 3 6 4 Combat Bots Only 5 | . 5 4 Max Kills in Single Turn 1 | 1 1 1 Gunslinging . | . . . Exploded . | . . . Melee . | . . . Uniques/NPCs Destroyed . | . . . Combat | -11 -10 -10 -------- Run | Yrd Mat Sub Hostile Shots Fired 89 | . 58 31 Missed 16 | . 6 10 Hits 73 | . 52 21 Projectile 73 | . 52 21 Critical Strikes 2 | . . 2 Damage Taken 1069 | . 640 429 Core 253 | . 166 87 Absorbed by Shields . | . . . Core Remaining (%) 100 | 100 . . Volleys Fired 147 | 8 99 40 Largest 2 | 2 2 2 Hottest 110 | 60 100 110 Shots Fired 259 | 16 181 62 Gun 126 | 16 96 14 Cannon 115 | . 68 47 Launcher . | . . . Special 18 | . 17 1 Kinetic 116 | 8 82 26 Thermal 143 | 8 99 36 Explosive . | . . . Electromagnetic . | . . . Robot Hit Streak 23 | 4 12 23 Robot Miss Streak 5 | 2 5 2 Penetration Max . | . . . Secondary Targets 1 | . 1 . Max Gunslinging Chain 1 | . 1 . Shots Hit Robots 147 | 9 102 36 Core Hits 68 | 5 49 14 Critical Kills . | . . . Critical Parts Destroyed . | . . . Critical Strikes 2 | . 1 1 Blast 2 | . 1 1 Melee Attacks . | . . . Impact . | . . . Slashing . | . . . Piercing . | . . . Sneak Attacks . | . . . Combat Hostiles . | . . . Follow-up Attacks . | . . . Damage Inflicted 2010 | 98 1301 611 Guns 777 | 98 543 136 Cannons 1229 | . 754 475 Explosions . | . . . Melee . | . . . Ramming 4 | . 4 . Kinetic 845 | 30 492 323 Thermal 1161 | 68 805 288 Explosive . | . . . Electromagnetic . | . . . Impact . | . . . Slashing . | . . . Piercing . | . . . Highest Corruption . | . . . Average Corruption . | . . . Corruption Purged . | . . . Corruption Blocked . | . . . Overload Shots . | . . . Overflow Damage 11 | . 11 . Projectiles 11 | . 11 . Explosions . | . . . Melee . | . . . Knockbacks 5 | . . 5 Impact . | . . . Kinetic 5 | . . 5 Secondary . | . . . Self-Inflicted Damage . | . . . Shots . | . . . Rammed . | . . . Targets Rammed 1 | . 1 . Kicked 1 | . 1 . Crushed . | . . . Highest Temperature 302 | 10 272 302 Average Temperature 77 | 7 77 118 Received Heat Transfer 702 | . 306 396 Effects 2 | . 1 1 Interference 1 | . 1 . Matter Decay 1 | . . 1 Siege Activations . | . . . Martial Activations . | . . . Shielding Activations . | . . . Robots Disrupted . | . . . Combat Hostiles . | . . . Robots Corrupted . | . . . Combat Hostiles . | . . . Parts Fried . | . . . Impact Corruptions . | . . . Robots Melted . | . . . Combat Hostiles . | . . . Parts Melted 4 | . 4 . Heat Transferred 2452 | 150 1746 556 Parts Sabotaged . | . . . Parts Stolen . | . . . Parts Stripped . | . . . Power Chain Reactions . | . . . Alert | -11 -10 -10 ------- Run | Yrd Mat Sub Maximum Alert Level 1 | . 1 . Low Security (%) 99 | 100 99 . Level 1 . | . . . Level 2 . | . . . Level 3 . | . . . Level 4 . | . . . Level 5 . | . . . High Security . | . . . Max Security . | . . . Peak Influence 204 | 5 204 . Initial . | . . . Average 106 | 1 116 . Influence Increases 659 | 20 529 110 Destroy 0b10 Robot/C 400 | . 320 80 Destroy 0b10 Robot/NC 90 | 20 70 . Destroy Leader 78 | . 78 . Disable Machine 30 | . 30 . Destroy Structure 1 | . 1 . Lose Combat Pursuer 60 | . 30 30 Influence Decreases 659 | 20 453 186 Entered New Map 37 | . . 37 Time Decay 612 | 20 443 149 Lost Part 10 | . 10 . Squads Dispatched 3 | . 3 . Investigation 1 | . 1 . Extermination . | . . . Reinforcement 2 | . 2 . Assault . | . . . Garrison . | . . . Intercept . | . . . Searches Triggered . | . . . Construction Impeded . | . . . Haulers Reinforced . | . . . Active Scanning Responses . | . . . Cargo Convoy Interrupts . | . . . Stealth | -11 -10 -10 --------- Run | Yrd Mat Sub Distress Signals 2 | . 2 . Communications Jammed . | . . . Distress Signals . | . . . Times Spotted 35 | . 23 12 Peak Tracking Total 6 | . 3 6 Tactical Retreats 2 | . 1 1 Traps | -11 -10 -10 ------- Run | Yrd Mat Sub Traps Triggered 2 | . 1 1 Indirectly . | . . . Trap Hack Attempts . | . . . Triggered . | . . . Disarmed . | . . . Reprogrammed . | . . . Reused . | . . . Traps Extracted . | . . . Installed . | . . . Triggered . | . . . Machines | -11 -10 -10 ---------- Run | Yrd Mat Sub Machines Disabled 3 | . 2 1 Max in Single Turn 1 | . 1 1 Machines Repaired . | . . . Machines Dismantled . | . . . Machines Sabotaged . | . . . Overloaded Fab Kills . | . . . Hacking | -11 -10 -10 --------- Run | Yrd Mat Sub Machines Accessed 1 | . . 1 Terminals . | . . . Fabricators . | . . . Repair Stations . | . . . Recycling Units . | . . . Scanalyzers . | . . . Garrison Access . | . . . Total Hacks 9 | . . 9 Successful 9 | . . 9 Failed . | . . . Catastrophic . | . . . Database Lockouts . | . . . Manual . | . . . Terminals . | . . . Fabricators . | . . . Repair Stations . | . . . Recycling Units . | . . . Scanalyzers . | . . . Garrison Access . | . . . Terminal Hacks 9 | . . 9 Record 8 | . . 8 Proto ID Catalog 1 | . . 1 Fabricator Hacks . | . . . Repair Station Hacks . | . . . Recycling Unit Hacks . | . . . Scanalyzer . | . . . Garrison Access Hacks . | . . . Unauthorized Hacks . | . . . Terminals . | . . . Fabricators . | . . . Repair Stations . | . . . Recycling Units . | . . . Scanalyzers . | . . . Garrison Access . | . . . Data Cores Recovered . | . . . Used . | . . . Hacking Detections . | . . . Full Trace Events . | . . . Feedback Events . | . . . Feedback Blocked . | . . . Robot Schematics Acquired . | . . . Robots Built . | . . . Authchips . | . . . Time . | . . . Total Robot Build Rating . | . . . Part Schematics Acquired . | . . . Parts Built . | . . . Authchips . | . . . Time . | . . . Total Part Build Rating . | . . . Part Studies Acquired . | . . . Parts Repaired . | . . . Time . | . . . Parts Recycled . | . . . Recycled Matter . | . . . Retrieved Matter . | . . . Retrieved Components . | . . . Parts Scanalyzed . | . . . Part Schematics Acquired . | . . . Parts Damaged . | . . . Bothacking | -11 -10 -10 ------------ Run | Yrd Mat Sub Used RIF Installer . | . . . Robots Hacked . | . . . Non-combat . | . . . Combat . | . . . Robot Hacks Applied . | . . . Relay Couplers Released . | . . . Fabnet Peak Effective % . | . . . Robots Rewired . | . . . Allies Hacked . | . . . Hacks Repelled . | . . . Allies | -11 -10 -10 -------- Run | Yrd Mat Sub Total Allies . | . . . Largest Group . | . . . Highest-Rated Group . | . . . Highest-Rated Ally . | . . . Total Orders . | . . . Ally Attacks . | . . . Total Damage . | . . . Kills . | . . . Allies Corrupted . | . . . Allies Melted . | . . . Intel | -11 -10 -10 ------- Run | Yrd Mat Sub Active Infowar (turns) 15 | . . 15 Sensors 15 | . . 15 Robot Analysis Total . | . . . Derelict Logs Recovered 1 | . . 1 Drone Launches . | . . . Drone Recoveries . | . . . Exploration | -11 -10 -10 ------------- Run | Yrd Mat Sub Turns Passed 2066 | 113 1179 774 Spaces Moved 1282 | 67 659 556 Core 1 | 1 . . Treads . | . . . Legs 311 | 9 302 . Wheels 970 | 57 357 556 Hover . | . . . Flight . | . . . Fastest Speed 50 | 50 80 107 Average Speed 106 | 92 104 109 Slowest Speed 190 | 120 190 110 Overloaded Moves . | . . . Propulsion Burnouts . | . . . Robots Hopped . | . . . Potential Cave-ins . | . . . Cave-ins Triggered . | . . . Exploration Rate (%) 44 | 5 96 31 Regions Visited 2 Branch Regions 1 Pre-discovered Areas 1 | . . 1 Known Exits Taken . | . . . Unknown Exits Taken 2 | 1 1 . Scrap Searched . | . . . Spaces Dug . | . . . Terrain Destroyed 1 | . 1 . Melee . | . . . Projectile 1 | . 1 . AOE . | . . . Terrain Rammed . | . . . Walls Destroyed . | . . . Machines Disabled . | . . . Actions | -11 -10 -10 --------- Run | Yrd Mat Sub Total 1708 | 104 954 650 Wait 147 | 3 112 32 Move 1280 | 66 658 556 Hop . | . . . Pick Up 45 | 12 26 7 Fast Attach 7 | 5 2 . Attach 5 | . 4 1 Detach . | . . . Swap 39 | 4 23 12 Drop 37 | 6 29 2 Fire 147 | 8 99 40 Melee . | . . . Ram . | . . . Kick 1 | . 1 . Crush . | . . . Escape Stasis . | . . . Rewire . | . . . Trap . | . . . Miscellaneous . | . . . Route ------- -11/Scrapyard -10/Materials (discovered 6 exits: [*Mat x3] / [*Min x2] / *Sub) -10/Subcaves (discovered 1 exit: [*Rec]) History --------- Turn | Location | Event 11 | -11/Scrapyard | Discovered new exit (range 15) 114 | -11/Scrapyard | Entered Materials 277 | -10/Materials | Discovered new exit (range 13) 432 | -10/Materials | Discovered new exit (range 14) 473 | -10/Materials | Core integrity fell below 50% 577 | -10/Materials | Discovered new exit (range 15) 692 | -10/Materials | Build established: Scavenger-Mutant 842 | -10/Materials | Discovered new exit (range 3) 1049 | -10/Materials | Discovered new exit (range 10) 1283 | -10/Materials | Discovered new exit (range 4) 1293 | -10/Materials | Entered Subcaves 1408 | -10/Subcaves | Discovered new exit (range 15) 1584 | -10/Subcaves | Build established: Mutant 1966 | -10/Subcaves | Shifting Twisted Machinery released Sub. Laser 1971 | -10/Subcaves | Shifting Twisted Machinery released Sub. Optics 2023 | -10/Subcaves | Visited 4L-MR0's lab 2033 | -10/Subcaves | Found Gun Armor 2060 | -10/Subcaves | Core integrity fell below 20% 2067 | -10/Subcaves | Destroyed by T6-D24(R) with Subdweller Beam Cannon Last Messages --------------- installation process. I did warn them to fully install it before trying to fire, and something tells me that's where things went wrong. Still I'm glad they didn't listen, that way I'm not culpable for whatever they would've done with it. If we're lucky even some of the others got blasted, too. 02029_ Testing Chamber breached. 02033_ Acquired Gun Armor. 02039_ 4L-MR0 mumbles to no one in particular: "Damn Subs sneaking around stealing my stuff." 02040_ 4L-MR0 mumbles: "I'm surprised some of them are even willing to come in here given their fear of my usual visitors." 02047_ Triggered Piercing Trap. 02047_ Spikes shoot up from the floor. 02047_ Critical hit (Impale). 02047_ Lgt. Armor Plating destroyed. 02047_ Critical hit (Impale). 02064_ T6-D24(R) knocked back. Map ----- +----------------------------------------------------+ | | | | | | | | | ???????????????????????????????????????????????? | | ???????????????????????????????????????????????? | | ???????????????????????????????????????????????? | | ???????????????????????????????????????????????? | | ???????????????????????????????????????????????? | | ???????????????????????????????????????????????? | | ???????????????????????????????????????????????? | | ???????????????????????????????????????????????? | | ???????????????????????????????????????????????? | | ???????????????????????????????????????????????? | | ???????????????????????????????????????????????? | | ?????????????????#####?????????????????????????? | | ????????????????##" "##########????????????????? | | ????????????????#" ""##"" #????????????????? | | ????????????????#" " #? ###????????????????? | | ????????????????#" " + "X"""#????????????????? | | ????????????????# " " #"""""""#????????????????? | | ????????????????#""" #########????????????????? | | ????????????????#<" ##????????????????????????? | | ????????????????#<<< "######???????????????????? | | ????????????????##<< # #???????????????????? | | ???????????????### @ ##???????????????????? | | ??????????????## ## #; % #???????????????????? | | ??????????????# ######< R ###????###??????????? | | ??????????????# ### < ###?""""## #?????? | | ??????????????# """ ##" " ! ??????? | | ??????????????## """ """"" """???????? | | ???????????????## #### " """"""""??????? | | ????????????????####??##" #????????? | | ???????????????????????## ""###????????? | | ????????????????????????### ## "##??????????? | | ??????????????????????????## ##??"#### ""?????? | | ????????????????######??### # ""?????? | | ????????????????# #*&####"##" """??????? | | ????????????????## *&=] * # ## """?????? | | ?????????????????# #&#"#""" ##????? ???????? | | ????????????????## ########" ##??????????????? | | ????????????????# #??????## #???????????????? | | ????????????????# #???????# ##???????????????? | | ??????????????#### ##???????###????????????????? | | ??????????????# ##" ##?????????????????????????? | | ??????????????# #"" #####?????????????????????? | | ??????????????# """ #?????????????????????? | | ??????????????# #?????????????????????? | | ??????????????# ### ##?????????????????????? | | ??????????????## #??????????????????????? | +----------------------------------------------------+ Best States ------------- Heat Dissipation 25 Energy Generation 10 Energy Capacity 250 Matter Stores 300 Matter Capacity 300 Sight Range 16 Robot Scan Range 14 Terrain Scan Density 10 Armor Coverage 150 Evasion (%) 55 Offensive Hacking 10 Item Schematics ----------------- None Robot Schematics ------------------ None Fabricated ------------ Nothing Repaired ---------- Nothing Studied --------- None Alien Tech Used ----------------- None Achievements -------------- Mistaken Identity Challenges ------------ None Game ------ Seed JunkReinforcedTrident Manual? 0 Play Time 00:20:59 Cumulative 80.9 hours Start 2026.01.05 @ 18:30:28 End 2026.01.05 @ 18:51:57 Sessions 1 Manual Loads 0 Difficulty Rogue Special Mode None Game No. 30 Rogue 30 Adventurer 0 Explorer 0 Win Type - Total 3 Types 2/0/1/0/0/0/0/0/0/0 Lore% 18 Gallery% 28 Achievement% 29 Wizard Run 0 Options --------- Layout 1 ASCII 0 Keyboard 0 Movement Mouse Keybinds 0 Fullscreen 1 Font 24/Smallcaps Map View 50x35 Zoom Use 0% Tactical HUD 1 Map Filters NONE Filters NONE Steam 1 RUN: 4ec68a4a-48ab-43ad-9968-8b1d67a03607